bitfinex-derivatives/quotes_SOLF0:USTF0_20220108
["timestamp","ask_amount","ask_price","bid_price","bid_amount"]
[1641658236118,5.50615599,145.3,145.29,4.0]
[1641658236318,5.50615599,145.3,145.23,1.72]
[1641658236517,5.50615599,145.3,145.26,27.66479]
[1641658236718,5.50615599,145.3,145.29,4.0]
[1641658237018,5.50615599,145.3,145.26,27.66479]
[1641658237217,5.50460444,145.34,145.29,8.0]
[1641658237517,5.50460444,145.34,145.29,4.0]
[1641658238117,5.50460444,145.34,145.32,4.0]
[1641658238319,5.50460444,145.34,145.33,4.0]
[1641658238719,27.66479,145.38,145.33,4.0]
[1641658238919,27.66479,145.38,145.36,4.0]
[1641658239318,14.55790781,145.42,145.37,8.0]
[1641658239520,14.55790781,145.42,145.41,4.0]
[1641658239719,14.55790781,145.46,145.37,1.719]
[1641658239921,5.50093034,145.43,145.39,4.0]
[1641658240125,5.50093034,145.43,145.34,5.719]
[1641658240321,14.55790781,145.46,145.42,8.0]
[1641658240520,14.55790781,145.46,145.45,4.0]
[1641658240721,14.55790781,145.46,145.42,33.38279]
[1641658240920,5.4987744,145.49,145.42,31.66479]
[1641658241121,5.4987744,145.49,145.42,27.66479]
[1641658241322,5.4987744,145.49,145.42,31.66479]
[1641658241523,5.4987744,145.49,145.42,34.5395322]
[1641658241723,5.4987744,145.49,145.42,38.5395322]
[1641658241921,5.4987744,145.49,145.4,19.24279]
[1641658242121,5.5002219,145.45,145.4,17.52479]
[1641658242322,5.5002219,145.45,145.4,21.52479]
[1641658242722,5.5002219,145.45,145.4,17.52479]
[1641658242924,5.5002219,145.45,145.4,21.52479]
[1641658243122,5.5002219,145.45,145.4,17.52479]
[1641658243423,5.49907057,145.48,145.42,4.0]
[1641658244125,5.49907057,145.48,145.45,4.0]
[1641658244524,5.49907057,145.48,145.41,4.0]
[1641658244727,5.49907057,145.48,145.46,4.0]
[1641658244927,5.49907057,145.48,145.44,4.0]
[1641658245328,5.49907057,145.48,145.43,6.87426961]
[1641658245530,5.49907057,145.48,145.46,4.0]
[1641658246630,5.49907057,145.48,145.43,34.53905961]
[1641658247128,5.50022968,145.45,145.41,4.0]
[1641658247328,5.50022968,145.45,145.4,6.87568757]
[1641658247531,5.50022968,145.45,145.4,10.87568757]
[1641658247728,5.50022968,145.45,145.37,27.50275027]
[1641658247729,5.50142191,145.42,145.37,6.87710611]
[1641658247930,5.50142191,145.42,145.37,4.0]
[1641658248229,5.50142191,145.42,145.34,73.91318868]
[1641658248431,5.50142191,145.42,145.39,4.0]
[1641658248631,5.50142191,145.42,145.37,4.0]
[1641658248930,5.50142191,145.42,145.38,4.0]
[1641658249429,5.50142191,145.42,145.36,27.66479]
[1641658249631,5.5025707,145.39,145.36,27.66479]
[1641658249832,5.5025707,145.39,145.35,4.0]
[1641658250433,5.5025707,145.39,145.34,34.54307868]
[1641658250634,5.50343055,145.37,145.34,38.54307868]
[1641658251037,5.50343055,145.37,145.35,4.0]
[1641658251234,5.50183296,145.41,145.36,4.0]
[1641658251434,5.50183296,145.41,145.4,4.0]
[1641658252232,5.50183296,145.41,145.39,4.0]
[1641658252633,4.28655567,145.43,145.39,4.0]
[1641658252833,27.66479,145.47,145.39,4.0]
[1641658253035,27.66479,145.47,145.4,4.0]
[1641658253233,34.26329712,145.49,145.4,4.0]
[1641658253434,10.5,145.52,145.4,4.0]
[1641658253634,10.5,145.52,145.38,6.87639677]
[1641658254035,10.5,145.52,145.43,4.0]
[1641658254236,10.5,145.52,145.38,6.87639677]
[1641658254435,20.0,145.5,145.41,4.0]
[1641658254635,27.66479,145.51,145.4,4.0]
[1641658254839,7.91627713,145.53,145.5,10.87096331]
[1641658255036,38.52546049,145.62,145.52,4.0]
[1641658255237,38.52546049,145.62,145.53,5.717]
[1641658255436,38.52546049,145.62,145.51,1.717]
[1641658255636,38.52546049,145.62,145.53,4.0]
[1641658255836,6.87332463,145.61,145.48,1.717]
[1641658256037,6.87332463,145.61,145.45,8.59032463]
[1641658256240,6.8747422,145.58,145.44,4.0]
[1641658256439,6.87592395,145.56,145.42,21.48930254]
[1641658256638,27.66479,145.52,145.44,31.66479]
[1641658256840,27.66479,145.52,145.46,4.0]
[1641658257039,27.66479,145.52,145.44,27.66479]
[1641658257240,27.66479,145.52,145.46,4.0]
[1641658257440,27.66479,145.52,145.44,27.66479]
[1641658257641,27.66479,145.52,145.49,4.0]
[1641658257841,5.49755648,145.52,145.44,29.38279]
[1641658258341,5.49755648,145.52,145.46,4.0]
[1641658259141,5.49755648,145.52,145.44,29.38279]
[1641658259443,5.49755648,145.52,145.45,4.0]
[1641658259641,5.49871286,145.49,145.43,6.87403334]
[1641658260342,5.49871286,145.49,145.46,4.0]
[1641658260643,5.49951427,145.47,145.45,27.66479]
[1641658260842,5.49724068,145.53,145.46,4.0]
[1641658261042,5.49724068,145.53,145.5,4.0]
[1641658261242,27.66479,145.57,145.49,4.0]
[1641658261644,27.66479,145.57,145.46,8.59061606]
[1641658261645,27.66479,145.57,145.51,4.0]
[1641658262242,27.66479,145.57,145.46,8.59061606]
[1641658262643,34.25986874,145.57,145.46,8.59061606]
[1641658262842,34.25986874,145.57,145.46,1.718]
[1641658263443,34.25986874,145.57,145.46,5.718]
[1641658263642,6.59695362,145.53,145.45,27.66479]
[1641658263942,6.59695362,145.53,145.44,4.0]
[1641658264142,6.59695362,145.53,145.4,11.67511829]
[1641658264345,6.59695362,145.53,145.43,4.0]
[1641658264548,6.59695362,145.53,145.42,4.0]
[1641658264745,27.66479,145.51,145.46,4.0]
[1641658265045,27.66479,145.51,145.4,8.5934512]
[1641658265446,27.66479,145.51,145.43,4.0]
[1641658265846,27.66479,145.51,145.42,4.0]
[1641658266046,27.66479,145.51,145.39,95.64799]
[1641658266249,47.66479,145.51,145.41,4.0]
[1641658266447,5.50033479,145.45,145.39,97.36599]
[1641658266646,5.50033479,145.45,145.42,4.0]
[1641658266849,6.59870507,145.49,145.39,29.38279]
[1641658267048,6.59870507,145.49,145.4,7.87444947]
[1641658267246,6.59870507,145.49,145.44,4.0]
[1641658267446,6.59870507,145.49,145.4,7.87444947]
[1641658267848,6.59870507,145.49,145.42,4.0]
[1641658268249,6.59870507,145.49,145.4,6.51766709]
[1641658268549,5.49985098,145.46,145.4,10.51766709]
[1641658268748,5.49985098,145.46,145.4,8.79966709]
[1641658269448,5.49985098,145.46,145.45,4.0]
[1641658269653,4.79966709,145.5,145.45,4.0]
[1641658269848,5.49867937,145.49,145.47,4.0]
[1641658270049,5.49867937,145.49,145.41,5.718]
[1641658270249,5.49867937,145.49,145.42,4.0]
[1641658270449,4.79966709,145.5,145.43,8.59226961]
[1641658270651,4.79966709,145.5,145.44,6.87356085]
[1641658270851,4.79966709,145.52,145.46,27.66479]
[1641658271251,4.79966709,145.52,145.48,4.0]
[1641658271451,4.79966709,145.52,145.51,4.0]
[1641658271653,6.59572835,145.55,145.51,4.0]
[1641658271853,4.79966709,145.56,145.54,4.0]
[1641658272253,4.79966709,145.56,145.5,4.0]
[1641658272550,4.79966709,145.56,145.55,4.0]
[1641658272751,4.79966709,145.56,145.52,27.66479]
[1641658272952,10.29433068,145.6,145.52,27.66479]
[1641658273151,10.29433068,145.6,145.53,4.0]
[1641658273853,4.79966709,145.59,145.52,27.66479]
[1641658274253,4.79966709,145.59,145.52,31.66479]
[1641658274453,4.79966709,145.59,145.56,4.0]
[1641658274653,4.79966709,145.59,145.55,4.0]
[1641658274855,4.79966709,145.59,145.54,4.0]
[1641658275054,4.79966709,145.59,145.58,4.0]
[1641658275655,4.79966709,145.59,145.53,1.717]
[1641658275853,4.79966709,145.59,145.55,4.0]
[1641658276252,4.79966709,145.59,145.54,4.0]
[1641658276454,4.79966709,145.59,145.53,1.717]
[1641658276653,5.49483372,145.6,145.56,4.0]
[1641658276854,5.49600274,145.57,145.53,4.0]
[1641658277054,5.49404275,145.62,145.55,4.0]
[1641658277254,4.79966709,145.61,145.55,4.0]
[1641658277958,4.79966709,145.61,145.57,4.0]
[1641658278156,4.79966709,145.61,145.53,4.0]
[1641658278355,5.49404275,145.62,145.54,1.717]
[1641658278557,5.49404275,145.62,145.55,4.0]
[1641658278757,5.49404275,145.62,145.52,99.70560924]
[1641658278957,5.49417311,145.61,145.53,4.0]
[1641658279358,5.49417311,145.61,145.56,4.0]
[1641658279659,5.49417311,145.61,145.57,4.0]
[1641658280557,5.49417311,145.61,145.53,1.717]
[1641658281457,5.49417311,145.61,145.57,4.0]
[1641658281658,5.49417311,145.61,145.53,1.717]
[1641658282060,5.49417311,145.61,145.6,4.0]
[1641658282461,5.49417311,145.61,145.53,1.717]
[1641658282662,5.49417311,145.61,145.57,4.0]
[1641658283262,5.49417311,145.61,145.56,31.66479]
[1641658283462,5.49417311,145.61,145.56,27.66479]
[1641658283663,5.49417311,145.61,145.57,4.0]
[1641658283863,5.49417311,145.61,145.56,27.66479]
[1641658284062,4.79966709,145.64,145.6,4.0]
[1641658284262,4.79966709,145.64,145.62,4.0]
[1641658284664,39.05544619,145.66,145.63,4.0]
[1641658284863,32.46445709,145.66,145.65,4.0]
[1641658285067,4.79966709,145.66,145.65,4.0]
[1641658285265,5.49112216,145.69,145.65,4.0]
[1641658285664,5.49112216,145.69,145.63,1.716]
[1641658285864,5.49112216,145.69,145.65,4.0]
[1641658286266,7.90610276,145.72,145.6,5.716]
[1641658286466,7.90610276,145.72,145.6,12.58224554]
[1641658286766,7.90610276,145.72,145.61,4.0]
[1641658286965,7.90610276,145.72,145.65,27.66479]
[1641658287165,5.49087571,145.7,145.65,27.66479]
[1641658287369,5.49087571,145.7,145.63,4.0]
[1641658287966,5.49087571,145.7,145.6,6.86624554]
[1641658288166,5.49087571,145.7,145.61,1.716]
[1641658288368,5.49087571,145.7,145.64,4.0]
[1641658289071,7.90610276,145.72,145.68,4.0]
[1641658289269,7.90610276,145.72,145.62,27.66479]
[1641658289270,7.90610276,145.72,145.67,4.0]
[1641658289671,7.90610276,145.72,145.63,5.715]
[1641658289871,42.22269781,145.76,145.69,4.0]
[1641658290071,42.22269781,145.76,145.65,75.33168908]
[1641658290272,42.22269781,145.76,145.65,79.33168908]
[1641658290473,42.22269781,145.76,145.75,4.0]
[1641658290672,42.22269781,145.76,145.71,4.0]
[1641658290872,6.58584086,145.77,145.73,4.0]
[1641658291075,42.22269781,145.8,145.76,4.0]
[1641658291273,42.22269781,145.8,145.72,6.86059276]
[1641658291474,42.22269781,145.8,145.78,4.0]
[1641658291874,27.66479,145.8,145.78,4.0]
[1641658292075,7.89902354,145.85,145.79,4.0]
[1641658292275,7.89902354,145.85,145.81,4.0]
[1641658292476,7.89902354,145.85,145.76,5.714]
[1641658292675,7.89902354,145.85,145.76,1.714]
[1641658292877,7.89902354,145.85,145.81,27.66479]
[1641658293075,5.48620292,145.83,145.75,1.714]
[1641658293277,26.08435359,145.84,145.72,8.57459276]
[1641658293478,26.08435359,145.84,145.77,4.0]
[1641658293676,19.50179519,145.84,145.75,4.0]
[1641658293876,5.48544811,145.85,145.75,4.0]
[1641658294077,5.48635222,145.82,145.75,4.0]
[1641658294276,5.48635222,145.82,145.78,4.0]
[1641658294477,5.48635222,145.82,145.72,8.57435742]
[1641658294676,5.48635222,145.82,145.73,4.0]
[1641658294876,5.4869404,145.81,145.71,92.60799]
[1641658295077,5.4869404,145.81,145.74,4.0]
[1641658295278,5.4869404,145.81,145.75,4.0]
[1641658295778,5.4877428,145.78,145.72,4.0]
[1641658295978,5.4877428,145.78,145.71,27.66479]
[1641658296179,5.4877428,145.78,145.71,31.66479]
[1641658296378,5.4877428,145.78,145.71,27.66479]
[1641658296578,5.48923864,145.74,145.7,4.0]
[1641658296778,5.48923864,145.74,145.68,4.0]
[1641658297380,5.48923864,145.74,145.67,4.0]
[1641658297580,5.48923864,145.74,145.65,1.715]
[1641658297779,5.49036606,145.71,145.63,4.0]
[1641658297981,6.58935838,145.69,145.58,1.716]
[1641658298180,5.49222916,145.67,145.57,4.0]
[1641658298381,5.49222916,145.67,145.57,5.716]
[1641658298680,5.49222916,145.67,145.62,4.0]
[1641658298882,27.66479,145.66,145.58,27.66479]
[1641658299180,27.66479,145.66,145.63,4.0]
[1641658299379,27.66479,145.68,145.59,1.716]
[1641658299580,5.49043786,145.71,145.65,4.0]
[1641658299780,5.49043786,145.71,145.59,5.716]
[1641658299982,5.49043786,145.71,145.62,4.0]
[1641658300485,5.49043786,145.71,145.59,1.716]
[1641658300682,5.49043786,145.71,145.63,4.0]
[1641658300883,33.15522786,145.71,145.61,27.66479]
[1641658301284,33.15522786,145.71,145.65,4.0]
[1641658301582,33.15522786,145.71,145.63,4.0]
[1641658301782,33.15522786,145.71,145.61,27.66479]
[1641658302182,5.49163663,145.68,145.61,27.66479]
[1641658302784,5.49163663,145.68,145.63,4.0]
[1641658303786,5.49163663,145.68,145.61,27.66479]
[1641658303987,27.66479,145.73,145.63,4.0]
[1641658304386,5.49009421,145.72,145.62,1.716]
[1641658304889,5.49009421,145.72,145.64,27.66479]
[1641658305288,5.49009421,145.72,145.66,4.0]
[1641658305691,5.49009421,145.72,145.67,4.0]
[1641658305890,5.49009421,145.72,145.64,27.66479]
[1641658306491,5.49009421,145.72,145.66,6.86341798]
[1641658306690,5.49009421,145.72,145.66,4.0]
[1641658306893,5.49009421,145.72,145.65,1.715]
[1641658307094,5.49009421,145.72,145.67,4.0]
[1641658307695,5.49009421,145.72,145.66,3.06236049]
[1641658308096,5.49009421,145.72,145.67,4.0]
[1641658308495,5.49009421,145.72,145.66,3.06236049]
[1641658308695,5.49009421,145.72,145.66,4.0]
[1641658308897,5.49134931,145.69,145.65,6.86365352]
[1641658309096,5.49134931,145.69,145.62,23.1958631]
[1641658309297,6.5891375,145.7,145.62,14.61456034]
[1641658309498,6.86624554,145.76,145.63,4.0]
[1641658309697,6.86624554,145.76,145.62,16.32956034]
[1641658309898,6.86624554,145.76,145.65,4.0]
[1641658310097,6.86624554,145.76,145.62,16.32956034]
[1641658310298,6.86624554,145.76,145.63,3.06536504]
[1641658310499,6.86624554,145.76,145.67,4.0]
[1641658310701,6.86624554,145.76,145.64,1.715]
[1641658311099,27.66479,145.75,145.65,27.66479]
[1641658311499,6.86742437,145.74,145.65,27.66479]
[1641658311899,7.90558444,145.72,145.65,27.66479]
[1641658312100,7.90558444,145.72,145.61,42.27935034]
[1641658312301,34.52,145.71,145.61,42.27935034]
[1641658312500,61.38883951,145.71,145.58,38.52546049]
[1641658312899,6.86883951,145.71,145.62,3.0706855]
[1641658313100,27.66479,145.64,145.62,3.0706855]
[1641658313301,27.66479,145.67,145.62,3.0706855]
[1641658313700,6.86883951,145.71,145.62,3.0706855]
[1641658314199,7.90558444,145.72,145.58,71.2982855]
[1641658314399,34.52,145.71,145.58,3.0706855]
[1641658314599,5.49284456,145.65,145.58,7.0706855]
[1641658314800,5.49284456,145.65,145.63,3.0706855]
[1641658315702,5.49284456,145.65,145.58,3.0706855]
[1641658315904,5.49284456,145.65,145.6,10.86695279]
[1641658316101,5.49284456,145.65,145.6,6.86695279]
[1641658316603,5.49284456,145.65,145.61,3.0706855]
[1641658319204,27.66479,145.68,145.61,3.0706855]
[1641658319205,5.49398783,145.62,145.61,3.0706855]
[1641658319404,5.49398783,145.62,145.61,7.0706855]
[1641658319704,5.49398783,145.62,145.61,3.0706855]
[1641658320407,27.66479,145.68,145.61,3.0706855]
[1641658321208,6.58970463,145.69,145.61,3.0706855]
[1641658322210,6.59144477,145.65,145.61,3.0706855]
[1641658323211,6.59144477,145.65,145.58,3.0706855]
[1641658323411,6.59355239,145.6,145.58,3.0706855]
[1641658323615,6.59355239,145.6,145.51,57.4441017]
[1641658323814,6.5963116,145.54,145.51,50.4441017]
[1641658324211,6.5963116,145.54,145.53,16.53086491]
[1641658325112,13.4688571,145.59,145.53,16.53086491]
[1641658325410,6.5941149,145.59,145.53,16.53086491]
[1641658325811,5.49653205,145.55,145.53,16.53086491]
[1641658326114,6.5941149,145.59,145.5,6.87143544]
[1641658326312,6.5941149,145.59,145.52,4.0]
[1641658326313,5.49539509,145.58,145.52,4.0]
[1641658326511,5.49539509,145.58,145.5,6.87143544]
[1641658327013,5.49539509,145.58,145.5,6.87167153]
[1641658327213,5.49645856,145.55,145.5,6.87167153]
[1641658327414,5.49645856,145.55,145.51,27.66479]
[1641658327813,6.5941149,145.59,145.52,4.0]
[1641658328013,6.5941149,145.59,145.54,6.86978326]
[1641658328816,6.5941149,145.59,145.52,5.717]
[1641658329115,5.49611464,145.56,145.51,27.66479]
[1641658329514,5.49611464,145.56,145.52,4.0]
[1641658329915,5.49611464,145.56,145.51,27.66479]
[1641658330115,5.49611464,145.56,145.53,10.87025523]
[1641658330316,5.49611464,145.56,145.53,6.87025523]
[1641658330818,6.59360037,145.6,145.53,6.87025523]
[1641658331018,5.49576187,145.57,145.53,6.87025523]
[1641658331219,5.49422817,145.61,145.54,4.0]
[1641658331421,5.49422817,145.61,145.56,27.66479]
[1641658333521,5.49422817,145.61,145.6,4.0]
[1641658333721,5.49422817,145.61,145.56,27.66479]
[1641658337124,5.49422817,145.61,145.57,4.0]
[1641658337325,7.91006871,145.64,145.6,8.0]
[1641658337526,7.90708796,145.7,145.63,4.0]
[1641658337725,7.90708796,145.7,145.65,4.0]
[1641658338127,5.49184846,145.68,145.62,6.86600982]
[1641658338526,5.49184846,145.68,145.63,4.0]
[1641658338825,5.49184846,145.68,145.64,4.0]
[1641658339227,5.49184846,145.68,145.62,6.86600982]
[1641658339527,5.49184846,145.68,145.66,4.0]
[1641658339727,5.49184846,145.68,145.62,10.86600982]
[1641658339928,5.49253789,145.66,145.61,59.32958]
[1641658340328,5.49327544,145.64,145.61,59.32958]
[1641658340929,5.49327544,145.64,145.61,55.32958]
[1641658341128,5.49327544,145.64,145.61,31.66479]
[1641658341430,5.4933549,145.64,145.61,27.66479]
[1641658341631,5.4933549,145.64,145.61,31.66479]
[1641658342030,5.4933549,145.64,145.61,27.66479]
[1641658342229,5.4933549,145.64,145.61,31.66479]
[1641658342930,5.4933549,145.64,145.61,27.66479]
[1641658343833,5.4933549,145.64,145.6,18.5348262]
[1641658343834,5.4933549,145.64,145.6,14.5348262]
[1641658344032,5.49426402,145.61,145.59,18.5348262]
[1641658344235,5.49426402,145.61,145.59,14.5348262]
[1641658344834,5.49426402,145.61,145.59,4.0]
[1641658345034,6.59166379,145.64,145.59,4.0]
[1641658345934,6.59166379,145.64,145.6,4.0]
[1641658346334,6.59166379,145.64,145.58,14.5348262]
[1641658346335,6.59166379,145.64,145.63,4.0]
[1641658346636,4.84710167,145.71,145.63,8.0]
[1641658346836,4.84710167,145.71,145.63,8.58036024]
[1641658347036,4.84710167,145.71,145.64,4.0]
[1641658347235,4.84710167,145.75,145.69,4.0]
[1641658347534,4.84710167,145.75,145.66,4.0]
[1641658347736,4.84710167,145.75,145.7,27.66479]
[1641658348637,32.51189167,145.8,145.7,27.66479]
[1641658349337,19.5028751,145.78,145.74,4.0]
[1641658349538,19.5028751,145.78,145.7,27.66479]
[1641658350038,19.5028751,145.78,145.7,31.66479]
[1641658350239,5.48861542,145.76,145.73,4.0]
[1641658350638,5.48740622,145.79,145.71,10.86106346]
[1641658350840,1.48888659,145.75,145.71,10.86106346]
[1641658351239,4.84710167,145.82,145.71,10.86106346]
[1641658351439,4.0,145.82,145.72,4.83778834]
[1641658351738,6.58496283,145.79,145.72,4.83778834]
[1641658352138,6.58496283,145.79,145.71,6.86106346]
[1641658353340,62.4165,145.84,145.75,4.0]
[1641658353540,24.44553279,145.85,145.73,66.1418]
[1641658353739,24.44553279,145.85,145.75,27.66479]
[1641658353940,24.44553279,145.85,145.76,1.714]
[1641658354139,14.32553279,145.85,145.76,1.714]
[1641658354939,9.47843112,145.85,145.76,5.714]
[1641658355140,9.47843112,145.85,145.77,4.0]
[1641658355340,9.47843112,145.85,145.78,1.714]
[1641658355740,9.47843112,145.85,145.78,29.37879]
[1641658356139,9.47843112,145.85,145.78,27.66479]
[1641658356540,14.96374277,145.85,145.78,27.66479]
[1641658358242,5.48531165,145.85,145.78,27.66479]
[1641658360946,5.48617421,145.83,145.78,29.37879]
[1641658361147,5.48617421,145.83,145.78,27.66479]
[1641658361746,5.48617421,145.83,145.78,55.32958]
[1641658363549,5.48617421,145.83,145.79,4.0]
[1641658363749,6.5818393,145.86,145.81,27.66479]
[1641658365152,10.5818393,145.86,145.79,1.714]
[1641658365354,4.0,145.8,145.75,4.83778834]
[1641658365552,5.4878653,145.78,145.75,4.83778834]
[1641658365753,5.4878653,145.78,145.75,32.50257834]
[1641658365953,5.48673231,145.81,145.75,32.50257834]
[1641658366353,5.48673231,145.81,145.75,27.66479]
[1641658366753,5.48765565,145.79,145.75,27.66479]
[1641658367754,34.24750349,145.84,145.75,27.66479]
[1641658367954,5.48663626,145.81,145.75,27.66479]
[1641658368856,5.48777484,145.78,145.73,6.55278834]
[1641658369056,5.48777484,145.78,145.73,4.83778834]
[1641658370059,5.48883796,145.76,145.72,26.50257834]
[1641658372357,6.58426709,145.81,145.72,26.50257834]
[1641658372761,6.58426709,145.81,145.73,3.06114133]
[1641658373862,6.58426709,145.81,145.76,27.66479]
[1641658374562,43.3306053,145.84,145.76,27.66479]
[1641658374961,5.48657042,145.82,145.76,27.66479]
[1641658375162,4.0,145.81,145.76,27.66479]
[1641658375364,5.48734396,145.8,145.76,27.66479]
[1641658376763,7.89894816,145.85,145.78,4.0]
[1641658376963,7.89894816,145.85,145.77,1.714]
[1641658377163,7.89894816,145.85,145.77,8.7890571]
[1641658377563,7.89894816,145.85,145.77,4.7890571]
[1641658377965,7.89894816,145.85,145.81,27.66479]
[1641658380268,4.0,145.84,145.81,27.66479]
[1641658380468,5.4862112,145.83,145.77,65.4675]
[1641658380666,5.4862112,145.83,145.76,43.9136162]
[1641658380667,5.48696511,145.81,145.76,42.1996162]
[1641658381066,5.4877548,145.78,145.76,36.1996162]
[1641658381468,5.4880508,145.78,145.76,36.1996162]
[1641658381867,4.0,145.77,145.76,14.5348262]
[1641658382068,55.32958,145.77,145.74,9.04600062]
[1641658382267,27.66479,145.77,145.74,0.00010062]
[1641658383070,27.66479,145.77,145.71,55.29280173]
[1641658383268,27.66479,145.77,145.69,6.86200508]
[1641658384068,6.5854828,145.78,145.69,6.86200508]
[1641658384468,4.0,145.77,145.69,6.86200508]
[1641658384669,4.0,145.76,145.69,6.86200508]
[1641658385275,6.5854828,145.78,145.69,6.86200508]
[1641658385469,10.5854828,145.78,145.69,6.86200508]
[1641658385670,4.0,145.77,145.69,6.86200508]
[1641658385868,6.5854828,145.78,145.69,6.86200508]
[1641658386269,10.5854828,145.78,145.69,6.86200508]
[1641658386470,4.0,145.77,145.69,6.86200508]
[1641658387069,4.0,145.77,145.68,27.66479]
[1641658387070,4.0,145.76,145.68,27.66479]
[1641658387269,4.0,145.72,145.66,38.75981493]
[1641658387469,4.0,145.72,145.65,27.66479]
[1641658387470,5.49222626,145.67,145.65,66.42460493]
[1641658387969,5.49222626,145.67,145.65,32.75981493]
[1641658388172,27.66479,145.69,145.65,27.26644704]
[1641658388369,31.66479,145.69,145.65,27.26644704]
[1641658388771,31.66479,145.69,145.61,58.0517287]
[1641658388971,31.66479,145.69,145.58,93.61709]
[1641658389171,4.0,145.68,145.58,93.61709]
[1641658389871,27.66479,145.69,145.58,93.61709]
[1641658390173,31.66479,145.69,145.58,93.61709]
[1641658390474,6.59042922,145.67,145.58,93.61709]
[1641658390777,4.0,145.65,145.58,93.61709]
[1641658390973,6.59042922,145.67,145.58,27.66479]
[1641658391174,66.1315,145.72,145.58,27.66479]
[1641658391374,34.2526304,145.73,145.62,6.86530276]
[1641658391574,34.2526304,145.73,145.62,10.86530276]
[1641658391775,34.2526304,145.73,145.63,1.716]
[1641658391974,6.5878404,145.73,145.63,1.716]
[1641658392175,10.5878404,145.73,145.62,6.86530276]
[1641658392375,4.0,145.72,145.64,27.66479]
[1641658392775,20.7478404,145.73,145.64,27.66479]
[1641658393577,4.0,145.67,145.64,27.66479]
[1641658393776,16.7478404,145.73,145.6,16.4678761]
[1641658393976,6.58957021,145.69,145.6,16.4678761]
[1641658394176,6.58957021,145.69,145.61,6.86577412]
[1641658394376,6.58957021,145.69,145.62,31.66479]
[1641658394576,6.58957021,145.69,145.62,29.38079]
[1641658395276,6.58957021,145.69,145.62,27.66479]
[1641658395677,6.58957021,145.69,145.62,31.66479]
[1641658395879,6.58957021,145.69,145.62,27.66479]
[1641658397680,6.58957021,145.69,145.64,6.86436024]
[1641658397881,10.16,145.73,145.66,4.0]
[1641658398080,4.0,145.75,145.67,4.0]
[1641658398282,7.90336856,145.77,145.67,4.0]
[1641658398482,5.48988985,145.73,145.7,27.66479]
[1641658399881,7.90336856,145.77,145.7,27.66479]
[1641658400081,7.90336856,145.77,145.71,3.06686215]
[1641658405593,7.90336856,145.77,145.71,7.06686215]
[1641658405795,7.90336856,145.77,145.72,6.86059276]
[1641658406098,7.90336856,145.77,145.72,8.57559276]
[1641658406493,7.90336856,145.77,145.74,27.66479]
[1641658408494,7.90336856,145.77,145.75,3.06894244]
[1641658408695,6.58428404,145.81,145.75,3.06894244]
[1641658408895,6.58428404,145.81,145.76,1.714]
[1641658409395,10.36,145.84,145.76,1.714]
[1641658409593,5.48587354,145.83,145.77,3.06894244]
[1641658409794,4.0,145.82,145.77,3.06894244]
[1641658409996,5.48700578,145.8,145.77,3.06894244]
[1641658410493,5.48700578,145.8,145.75,3.06894244]
[1641658412795,5.48657584,145.82,145.75,3.06894244]
[1641658413196,5.48737829,145.79,145.75,3.06894244]
[1641658414896,5.48737829,145.79,145.74,27.66479]
[1641658416098,5.48737829,145.79,145.74,31.66479]
[1641658416298,5.48737829,145.79,145.74,27.66479]
[1641658416497,5.48737829,145.79,145.75,3.06712626]
[1641658416699,4.0,145.77,145.75,3.06712626]
[1641658416900,5.4886709,145.76,145.75,3.06712626]
[1641658417098,5.49001536,145.72,145.71,14.51540172]
[1641658417300,5.49001536,145.72,145.7,14.51540172]
[1641658418202,5.49001536,145.72,145.67,14.51540172]
[1641658418402,5.49001536,145.72,145.69,4.0]
[1641658418602,5.49001536,145.72,145.67,18.51540172]
[1641658418803,5.49001536,145.72,145.69,27.66479]
[1641658419003,6.58662511,145.75,145.69,27.66479]
[1641658419504,12.07583972,145.75,145.69,27.66479]
[1641658419904,5.48998181,145.72,145.69,27.66479]
[1641658420305,5.48998181,145.72,145.69,42.18019172]
[1641658420706,5.48998181,145.72,145.69,14.51540172]
[1641658421708,6.58825374,145.72,145.68,9.02390717]